[Event "Late-Titled-Tuesday-Blitz-March-19-2024"]
[Site "Chess.com"]
[Date "2024.03.19"]
[Round "4"]
[White "AlexPapasimakopoulos"]
[Black "Sinquefield"]
[Result "1-0"]
[WhiteElo "2752"]
[BlackElo "2516"]
[TimeControl "180+1"]
[EndTime "14:38:55 PDT"]
[Termination "AlexPapasimakopoulos won by checkmate"]

1. d4 {[%clk 0:03:00.9]} 1... d6 {[%clk 0:02:59.4]} 2. Nf3 {[%clk 0:02:59.5]}
2... Nf6 {[%clk 0:02:59.8]} 3. c4 {[%clk 0:02:59.1]} 3... Nbd7 {[%clk
0:03:00.3]} 4. Nc3 {[%clk 0:02:56.5]} 4... e5 {[%clk 0:03:00.8]} 5. Bg5 {[%clk
0:02:57]} 5... Be7 {[%clk 0:03:00.9]} 6. e3 {[%clk 0:02:57.4]} 6... c6 {[%clk
0:03:01.3]} 7. Be2 {[%clk 0:02:56]} 7... O-O {[%clk 0:02:54.9]} 8. O-O {[%clk
0:02:55.4]} 8... e4 {[%clk 0:02:49.5]} 9. Nd2 {[%clk 0:02:54.3]} 9... d5 {[%clk
0:02:50]} 10. b4 {[%clk 0:02:49.9]} 10... Bxb4 {[%clk 0:02:48.6]} 11. Qb3 {[%clk
0:02:50.6]} 11... Bxc3 {[%clk 0:02:32.7]} 12. Qxc3 {[%clk 0:02:50.4]} 12... Nb6
{[%clk 0:02:26.9]} 13. c5 {[%clk 0:02:41]} 13... Nbd7 {[%clk 0:02:26.5]} 14. f3
{[%clk 0:02:41.3]} 14... exf3 {[%clk 0:02:23.4]} 15. Rxf3 {[%clk 0:02:34.3]}
15... h6 {[%clk 0:02:22.8]} 16. Bh4 {[%clk 0:02:31.9]} 16... Re8 {[%clk
0:02:08.9]} 17. Raf1 {[%clk 0:02:30.2]} 17... Re6 {[%clk 0:02:09]} 18. Bd3
{[%clk 0:02:28.5]} 18... Qe8 {[%clk 0:02:07.8]} 19. Bf5 {[%clk 0:02:26.2]} 19...
Re7 {[%clk 0:02:07.8]} 20. Bxd7 {[%clk 0:02:22.8]} 20... Bxd7 {[%clk 0:01:57.8]}
21. Bxf6 {[%clk 0:02:23]} 21... gxf6 {[%clk 0:01:58.1]} 22. Rg3+ {[%clk
0:02:23.6]} 22... Kh8 {[%clk 0:01:54]} 23. Rxf6 {[%clk 0:02:09]} 23... Re6
{[%clk 0:01:54]} 24. Rf4 {[%clk 0:02:03.3]} 24... Qe7 {[%clk 0:01:51.5]} 25. Nf1
{[%clk 0:01:54]} 25... Rg8 {[%clk 0:01:50.5]} 26. Rxg8+ {[%clk 0:01:51.7]} 26...
Kxg8 {[%clk 0:01:51.4]} 27. Qb3 {[%clk 0:01:51.7]} 27... Bc8 {[%clk 0:01:47.1]}
28. a4 {[%clk 0:01:47.8]} 28... Rg6 {[%clk 0:01:47.1]} 29. a5 {[%clk 0:01:46.3]}
29... a6 {[%clk 0:01:40.4]} 30. Qc3 {[%clk 0:01:43.5]} 30... h5 {[%clk
0:01:32.8]} 31. Qe1 {[%clk 0:01:42.2]} 31... Qg5 {[%clk 0:01:29.3]} 32. Qf2
{[%clk 0:01:40.6]} 32... Be6 {[%clk 0:01:28.1]} 33. Nd2 {[%clk 0:01:36.1]} 33...
Qd8 {[%clk 0:01:22.6]} 34. Nb3 {[%clk 0:01:33.2]} 34... Kg7 {[%clk 0:01:20.6]}
35. Kh1 {[%clk 0:01:25.4]} 35... Qg5 {[%clk 0:01:16.6]} 36. Nc1 {[%clk
0:01:17.7]} 36... Qd8 {[%clk 0:01:09]} 37. Qd2 {[%clk 0:01:17.4]} 37... Rf6
{[%clk 0:01:06.1]} 38. Nd3 {[%clk 0:01:13.6]} 38... Rxf4 {[%clk 0:00:58.3]} 39.
Nxf4 {[%clk 0:01:12.7]} 39... Qg5 {[%clk 0:00:54.7]} 40. e4 {[%clk 0:01:06.7]}
40... Qh4 {[%clk 0:00:34.5]} 41. e5 {[%clk 0:00:46.2]} 41... Bf5 {[%clk
0:00:29.7]} 42. Qe3 {[%clk 0:00:38.9]} 42... Qd8 {[%clk 0:00:23.9]} 43. Nxh5+
{[%clk 0:00:36]} 43... Kg6 {[%clk 0:00:13.5]} 44. Nf6 {[%clk 0:00:27.4]} 44...
Be4 {[%clk 0:00:05.9]} 45. Qg3+ {[%clk 0:00:26.1]} 45... Kf5 {[%clk 0:00:06.4]}
46. Qg4# {[%clk 0:00:25.8]} 1-0

[Event "Late-Titled-Tuesday-Blitz-March-19-2024"]
[Site "Chess.com"]
[Date "2024.03.19"]
[Round "4"]
[White "1g60-1"]
[Black "ozates"]
[Result "1-0"]
[WhiteElo "2386"]
[BlackElo "2553"]
[TimeControl "180+1"]
[EndTime "14:38:55 PDT"]
[Termination "1g60-1 won by checkmate"]

1. e4 {[%clk 0:03:00.9]} 1... c5 {[%clk 0:02:59.4]} 2. Nf3 {[%clk 0:03:01.2]}
2... Nc6 {[%clk 0:02:58.8]} 3. d4 {[%clk 0:03:01.5]} 3... cxd4 {[%clk
0:02:59.7]} 4. Nxd4 {[%clk 0:03:02.1]} 4... e5 {[%clk 0:02:58.9]} 5. Nb5 {[%clk
0:03:01.7]} 5... d6 {[%clk 0:02:58.9]} 6. N1c3 {[%clk 0:03:02]} 6... a6 {[%clk
0:02:59.1]} 7. Na3 {[%clk 0:03:02]} 7... b5 {[%clk 0:03:00]} 8. Nd5 {[%clk
0:03:02.3]} 8... Nge7 {[%clk 0:03:00.9]} 9. c4 {[%clk 0:03:02.3]} 9... Nd4
{[%clk 0:03:01.2]} 10. Bd3 {[%clk 0:03:01.5]} 10... Nxd5 {[%clk 0:03:01.1]} 11.
cxd5 {[%clk 0:02:59]} 11... g6 {[%clk 0:03:00.3]} 12. Nc2 {[%clk 0:02:56.3]}
12... Bg7 {[%clk 0:02:57.2]} 13. Nxd4 {[%clk 0:02:55.9]} 13... exd4 {[%clk
0:02:57.7]} 14. O-O {[%clk 0:02:55.3]} 14... O-O {[%clk 0:02:58.3]} 15. Bd2
{[%clk 0:02:41]} 15... f5 {[%clk 0:02:52.2]} 16. f3 {[%clk 0:02:33.5]} 16... Bd7
{[%clk 0:02:40.1]} 17. Rc1 {[%clk 0:02:31]} 17... fxe4 {[%clk 0:02:33.8]} 18.
fxe4 {[%clk 0:02:27.9]} 18... Be5 {[%clk 0:02:24.5]} 19. Rxf8+ {[%clk
0:02:08.3]} 19... Qxf8 {[%clk 0:02:25.4]} 20. Qf3 {[%clk 0:02:08]} 20... Qe7
{[%clk 0:02:09.1]} 21. Rf1 {[%clk 0:01:29.2]} 21... Kg7 {[%clk 0:01:47.1]} 22.
Bf4 {[%clk 0:00:54.1]} 22... Rc8 {[%clk 0:01:21.9]} 23. a3 {[%clk 0:00:34.7]}
23... h5 {[%clk 0:01:19.2]} 24. Bxe5+ {[%clk 0:00:33.8]} 24... dxe5 {[%clk
0:01:20.1]} 25. Qe2 {[%clk 0:00:19.6]} 25... Qg5 {[%clk 0:01:14.2]} 26. Qf2
{[%clk 0:00:19.3]} 26... Kh6 {[%clk 0:01:12.1]} 27. h4 {[%clk 0:00:16.2]} 27...
Qg4 {[%clk 0:01:07.1]} 28. Qf7 {[%clk 0:00:11.2]} 28... a5 {[%clk 0:00:42.7]}
29. Qe7 {[%clk 0:00:11.3]} 29... Re8 {[%clk 0:00:32.4]} 30. Qf7 {[%clk
0:00:07.6]} 30... b4 {[%clk 0:00:30.7]} 31. axb4 {[%clk 0:00:07.3]} 31... axb4
{[%clk 0:00:31.6]} 32. Rf6 {[%clk 0:00:07.1]} 32... Rc8 {[%clk 0:00:26.9]} 33.
Rf1 {[%clk 0:00:06.5]} 33... Ba4 {[%clk 0:00:20.6]} 34. Qe7 {[%clk 0:00:05.9]}
34... Qg3 {[%clk 0:00:19.4]} 35. Rf7 {[%clk 0:00:04.6]} 35... Rc1+ {[%clk
0:00:19.1]} 36. Bf1 {[%clk 0:00:04.8]} 36... Rxf1+ {[%clk 0:00:13]} 37. Rxf1
{[%clk 0:00:04.8]} 37... Qe3+ {[%clk 0:00:07.5]} 38. Kh1 {[%clk 0:00:04.4]}
38... Qxe4 {[%clk 0:00:07.8]} 39. Qf8+ {[%clk 0:00:04.4]} 39... Kh7 {[%clk
0:00:07.2]} 40. Rf7# {[%clk 0:00:04.6]} 1-0

[Event "Late-Titled-Tuesday-Blitz-March-19-2024"]
[Site "Chess.com"]
[Date "2024.03.19"]
[Round "4"]
[White "Godzillator"]
[Black "Slovak_fighter2000"]
[Result "0-1"]
[WhiteElo "2400"]
[BlackElo "2580"]
[TimeControl "180+1"]
[EndTime "14:38:57 PDT"]
[Termination "Slovak_fighter2000 won by checkmate"]

1. Nf3 {[%clk 0:03:00.9]} 1... d5 {[%clk 0:02:59]} 2. b3 {[%clk 0:03:00.4]} 2...
Nf6 {[%clk 0:02:55.9]} 3. Bb2 {[%clk 0:03:00.5]} 3... Bf5 {[%clk 0:02:55.4]} 4.
e3 {[%clk 0:03:00.2]} 4... e6 {[%clk 0:02:55.5]} 5. Be2 {[%clk 0:03:00.4]} 5...
h6 {[%clk 0:02:53.1]} 6. O-O {[%clk 0:03:00.2]} 6... Be7 {[%clk 0:02:52.5]} 7.
c4 {[%clk 0:02:58.1]} 7... c6 {[%clk 0:02:52.4]} 8. Nc3 {[%clk 0:02:55.4]} 8...
O-O {[%clk 0:02:52.1]} 9. d4 {[%clk 0:02:51.4]} 9... Nbd7 {[%clk 0:02:50.6]} 10.
Rc1 {[%clk 0:02:50.3]} 10... Ne4 {[%clk 0:02:50.5]} 11. Nxe4 {[%clk 0:02:49.5]}
11... Bxe4 {[%clk 0:02:51.4]} 12. Nd2 {[%clk 0:02:47.9]} 12... Bh7 {[%clk
0:02:49.6]} 13. Kh1 {[%clk 0:02:40.8]} 13... Nf6 {[%clk 0:02:49.1]} 14. f3
{[%clk 0:02:40.4]} 14... a5 {[%clk 0:02:48.7]} 15. a3 {[%clk 0:02:39.5]} 15...
Re8 {[%clk 0:02:45.6]} 16. Re1 {[%clk 0:02:36.3]} 16... Bd6 {[%clk 0:02:43.2]}
17. Bf1 {[%clk 0:02:35.4]} 17... Nh5 {[%clk 0:02:40.1]} 18. g3 {[%clk
0:02:22.5]} 18... f5 {[%clk 0:02:22.3]} 19. Kg2 {[%clk 0:02:21.7]} 19... Qg5
{[%clk 0:02:20.6]} 20. f4 {[%clk 0:02:12.5]} 20... Qg6 {[%clk 0:02:14.1]} 21.
Nf3 {[%clk 0:02:09.6]} 21... Nf6 {[%clk 0:02:06.5]} 22. Ne5 {[%clk 0:02:07.3]}
22... Bxe5 {[%clk 0:02:01.8]} 23. dxe5 {[%clk 0:02:07.6]} 23... Ne4 {[%clk
0:02:02.7]} 24. cxd5 {[%clk 0:02:06.2]} 24... exd5 {[%clk 0:02:00.7]} 25. Qd4
{[%clk 0:01:54.3]} 25... Qf7 {[%clk 0:01:54.2]} 26. Bd3 {[%clk 0:01:52.5]} 26...
Bg6 {[%clk 0:01:51.2]} 27. Bxe4 {[%clk 0:01:47.9]} 27... fxe4 {[%clk 0:01:48.1]}
28. h3 {[%clk 0:01:46.4]} 28... h5 {[%clk 0:01:46.8]} 29. a4 {[%clk 0:01:42.1]}
29... Bf5 {[%clk 0:01:42.9]} 30. Ba3 {[%clk 0:01:36.7]} 30... Qe6 {[%clk
0:01:38.6]} 31. Rh1 {[%clk 0:01:35.1]} 31... Kf7 {[%clk 0:01:30.6]} 32. b4
{[%clk 0:01:31.3]} 32... axb4 {[%clk 0:01:15.8]} 33. Qxb4 {[%clk 0:01:31]} 33...
Ra7 {[%clk 0:01:15.2]} 34. Rb1 {[%clk 0:01:23.9]} 34... Rea8 {[%clk 0:01:14.6]}
35. Qd6 {[%clk 0:01:22.7]} 35... Qxd6 {[%clk 0:01:11.2]} 36. Bxd6 {[%clk
0:01:22.2]} 36... Kg6 {[%clk 0:01:07]} 37. Rhg1 {[%clk 0:01:13.4]} 37... Rxa4
{[%clk 0:01:04.2]} 38. g4 {[%clk 0:01:05.4]} 38... hxg4 {[%clk 0:00:58.7]} 39.
hxg4 {[%clk 0:01:05]} 39... Bxg4 {[%clk 0:00:59.6]} 40. Kh1 {[%clk 0:01:01.2]}
40... Kh5 {[%clk 0:00:50.2]} 41. Rb2 {[%clk 0:00:58.1]} 41... Ra2 {[%clk
0:00:43.8]} 42. Rh2+ {[%clk 0:00:57.3]} 42... Rxh2+ {[%clk 0:00:42.1]} 43. Kxh2
{[%clk 0:00:57.6]} 43... Ra2+ {[%clk 0:00:39]} 44. Kg3 {[%clk 0:00:57.4]} 44...
Bf5 {[%clk 0:00:38.8]} 45. Rh1+ {[%clk 0:00:54.9]} 45... Kg6 {[%clk 0:00:38.6]}
46. Bc5 {[%clk 0:00:52]} 46... Rc2 {[%clk 0:00:36.7]} 47. Bb6 {[%clk 0:00:49.6]}
47... c5 {[%clk 0:00:34.7]} 48. Kh4 {[%clk 0:00:48.4]} 48... Rc3 {[%clk
0:00:29.9]} 49. Rg1+ {[%clk 0:00:47.3]} 49... Kf7 {[%clk 0:00:30.2]} 50. Bc7
{[%clk 0:00:35.6]} 50... Rxe3 {[%clk 0:00:27.6]} 51. Kg5 {[%clk 0:00:35.6]}
51... g6 {[%clk 0:00:23.6]} 52. Bd6 {[%clk 0:00:34.8]} 52... b6 {[%clk
0:00:23.4]} 53. Ra1 {[%clk 0:00:29.7]} 53... Rg3+ {[%clk 0:00:23.2]} 54. Kh4
{[%clk 0:00:27.7]} 54... Rh3+ {[%clk 0:00:24.1]} 55. Kg5 {[%clk 0:00:27.7]}
55... Rh5# {[%clk 0:00:25]} 0-1

[Event "Late-Titled-Tuesday-Blitz-March-19-2024"]
[Site "Chess.com"]
[Date "2024.03.19"]
[Round "4"]
[White "Kopytkin"]
[Black "djano"]
[Result "0-1"]
[WhiteElo "2432"]
[BlackElo "2622"]
[TimeControl "180+1"]
[EndTime "14:38:58 PDT"]
[Termination "djano won by resignation"]

1. d4 {[%clk 0:03:00.9]} 1... d6 {[%clk 0:02:58.9]} 2. Bg5 {[%clk 0:03:00]} 2...
g6 {[%clk 0:02:58.6]} 3. Nf3 {[%clk 0:02:54.1]} 3... Bg7 {[%clk 0:02:58.8]} 4.
c4 {[%clk 0:02:52.4]} 4... Nf6 {[%clk 0:02:59.1]} 5. Nc3 {[%clk 0:02:52.1]} 5...
O-O {[%clk 0:02:59.4]} 6. e3 {[%clk 0:02:52.6]} 6... h6 {[%clk 0:02:58.3]} 7.
Bh4 {[%clk 0:02:52.5]} 7... c5 {[%clk 0:02:58.9]} 8. Be2 {[%clk 0:02:45.8]} 8...
Qb6 {[%clk 0:02:55.7]} 9. Qd2 {[%clk 0:02:29.1]} 9... Nc6 {[%clk 0:02:51.6]} 10.
d5 {[%clk 0:02:15]} 10... Nb8 {[%clk 0:02:44.2]} 11. e4 {[%clk 0:02:09.5]} 11...
e6 {[%clk 0:02:36.7]} 12. O-O {[%clk 0:02:08.6]} 12... g5 {[%clk 0:02:35.7]} 13.
Bg3 {[%clk 0:02:08]} 13... e5 {[%clk 0:02:36.3]} 14. h4 {[%clk 0:01:57.8]} 14...
g4 {[%clk 0:02:29.9]} 15. Nh2 {[%clk 0:01:56.6]} 15... Na6 {[%clk 0:02:18.9]}
16. a3 {[%clk 0:01:41.1]} 16... Qd8 {[%clk 0:02:15.5]} 17. Nd1 {[%clk
0:01:40.3]} 17... Nxe4 {[%clk 0:02:05]} 18. Qc2 {[%clk 0:01:30.7]} 18... f5
{[%clk 0:02:01.8]} 19. Bd3 {[%clk 0:01:19.7]} 19... Nxg3 {[%clk 0:02:01.5]} 20.
fxg3 {[%clk 0:01:20]} 20... e4 {[%clk 0:02:02.2]} 21. Be2 {[%clk 0:01:16.7]}
21... Be5 {[%clk 0:01:55.8]} 22. Qd2 {[%clk 0:00:59.6]} 22... Kh7 {[%clk
0:01:47.4]} 23. Rf4 {[%clk 0:00:51.7]} 23... Bxf4 {[%clk 0:01:37.1]} 24. Qxf4
{[%clk 0:00:51.3]} 24... Qf6 {[%clk 0:01:37.3]} 25. Nc3 {[%clk 0:00:42.9]} 25...
Qe5 {[%clk 0:01:35.7]} 26. Rf1 {[%clk 0:00:30.5]} 26... Bd7 {[%clk 0:01:36]} 27.
Bd1 {[%clk 0:00:13.6]} 27... Rae8 {[%clk 0:01:35.7]} 28. Bc2 {[%clk 0:00:12.2]}
28... Nc7 {[%clk 0:01:30.5]} 29. Kh1 {[%clk 0:00:11.7]} 29... Qxf4 {[%clk
0:01:29.4]} 30. gxf4 {[%clk 0:00:09.8]} 30... b5 {[%clk 0:01:27.8]} 31. g3
{[%clk 0:00:05.4]} 31... bxc4 {[%clk 0:01:23.7]} 32. Nd1 {[%clk 0:00:05.5]}
32... Rb8 {[%clk 0:01:23.5]} 33. Rf2 {[%clk 0:00:02.9]} 33... Nb5 {[%clk
0:01:23.8]} 34. Ba4 {[%clk 0:00:02.7]} 34... Nd4 {[%clk 0:01:24.4]} 35. Bxd7
{[%clk 0:00:02.2]} 35... e3 {[%clk 0:01:23.7]} 36. Nxe3 {[%clk 0:00:01.8]} 36...
c3 {[%clk 0:01:22.9]} 37. bxc3 {[%clk 0:00:01.1]} 37... Rb1+ {[%clk 0:01:20.5]}
38. Nhf1 {[%clk 0:00:02]} 38... Nf3 {[%clk 0:01:20.4]} 39. Kg2 {[%clk
0:00:02.3]} 39... Rfb8 {[%clk 0:01:20.4]} 40. Bxf5+ {[%clk 0:00:02]} 40... Kh8
{[%clk 0:01:19.9]} 41. Bxg4 {[%clk 0:00:02]} 41... Ne1+ {[%clk 0:01:20.8]} 42.
Kg1 {[%clk 0:00:01.7]} 42... Ra1 {[%clk 0:01:20.4]} 43. Bf5 {[%clk 0:00:01.7]}
43... Re8 {[%clk 0:01:19.2]} 44. Be6 {[%clk 0:00:01.6]} 44... Nd3 {[%clk
0:01:17.2]} 45. f5 {[%clk 0:00:02.5]} 45... Nxf2 {[%clk 0:01:16.4]} 46. Kxf2
{[%clk 0:00:03.4]} 46... Kg7 {[%clk 0:01:16.7]} 47. g4 {[%clk 0:00:03.4]} 47...
Rxa3 {[%clk 0:01:17.1]} 48. g5 {[%clk 0:00:03]} 48... hxg5 {[%clk 0:01:16.4]}
49. hxg5 {[%clk 0:00:03.9]} 49... Rxc3 {[%clk 0:01:16]} 50. Nh2 {[%clk
0:00:04.5]} 50... a5 {[%clk 0:01:12.6]} 51. Nf3 {[%clk 0:00:04.3]} 51... a4
{[%clk 0:01:11.7]} 52. Nh4 {[%clk 0:00:04.6]} 52... Rf8 {[%clk 0:01:10.9]} 53.
f6+ {[%clk 0:00:05.1]} 53... Rxf6+ {[%clk 0:01:11.2]} 54. gxf6+ {[%clk
0:00:05.6]} 54... Kxf6 {[%clk 0:01:12.1]} 55. Ke2 {[%clk 0:00:04.9]} 55... a3
{[%clk 0:01:12.4]} 56. Ng4+ {[%clk 0:00:03.2]} 56... Ke7 {[%clk 0:01:11.7]} 57.
Nf5+ {[%clk 0:00:03.3]} 57... Kd8 {[%clk 0:01:12.1]} 58. Nxd6 {[%clk 0:00:02.3]}
58... a2 {[%clk 0:01:12.5]} 59. Nb7+ {[%clk 0:00:02.2]} 59... Kc7 {[%clk
0:01:11.7]} 60. d6+ {[%clk 0:00:01.9]} 60... Kxb7 {[%clk 0:01:09.8]} 61. Bxa2
{[%clk 0:00:02.8]} 61... Rc2+ {[%clk 0:01:08.3]} 62. Kd3 {[%clk 0:00:03]} 62...
Rxa2 {[%clk 0:01:09.2]} 63. Kc4 {[%clk 0:00:03.4]} 63... Ra4+ {[%clk 0:01:07.8]}
64. Kd5 {[%clk 0:00:03.7]} 64... Rxg4 {[%clk 0:01:08.7]} 65. d7 {[%clk 0:00:03]}
65... Rd4+ {[%clk 0:01:08.7]} 66. Kxc5 {[%clk 0:00:03.2]} 66... Rxd7 {[%clk
0:01:09]} 0-1

[Event "Late-Titled-Tuesday-Blitz-March-19-2024"]
[Site "Chess.com"]
[Date "2024.03.19"]
[Round "4"]
[White "angelgab3"]
[Black "Oligan22"]
[Result "1-0"]
[WhiteElo "2635"]
[BlackElo "2419"]
[TimeControl "180+1"]
[EndTime "14:39:02 PDT"]
[Termination "angelgab3 won by resignation"]

1. e4 {[%clk 0:03:00.9]} 1... c5 {[%clk 0:02:59.5]} 2. Nf3 {[%clk 0:03:00.9]}
2... e6 {[%clk 0:02:59.9]} 3. g3 {[%clk 0:03:00.1]} 3... Nc6 {[%clk 0:02:59.3]}
4. Bg2 {[%clk 0:03:00.3]} 4... Nf6 {[%clk 0:02:57.4]} 5. Qe2 {[%clk 0:03:00.7]}
5... d6 {[%clk 0:02:57.7]} 6. O-O {[%clk 0:03:00.5]} 6... Be7 {[%clk 0:02:58.3]}
7. d4 {[%clk 0:03:00.7]} 7... cxd4 {[%clk 0:02:57.8]} 8. Rd1 {[%clk 0:03:01.3]}
8... e5 {[%clk 0:02:56.5]} 9. c3 {[%clk 0:03:01.4]} 9... dxc3 {[%clk 0:02:51.4]}
10. Nxc3 {[%clk 0:03:02.3]} 10... a6 {[%clk 0:02:51.9]} 11. Bg5 {[%clk
0:03:02.2]} 11... Be6 {[%clk 0:02:45]} 12. Rac1 {[%clk 0:03:00.2]} 12... O-O
{[%clk 0:02:42.7]} 13. Rd2 {[%clk 0:02:50.4]} 13... h6 {[%clk 0:02:39.9]} 14.
Bxf6 {[%clk 0:02:50.2]} 14... Bxf6 {[%clk 0:02:40.8]} 15. Rcd1 {[%clk
0:02:50.7]} 15... Be7 {[%clk 0:02:40.8]} 16. Nd5 {[%clk 0:02:47.4]} 16... Bxd5
{[%clk 0:02:37.1]} 17. Rxd5 {[%clk 0:02:48.3]} 17... Qb6 {[%clk 0:02:33]} 18. a3
{[%clk 0:02:48.4]} 18... Rfd8 {[%clk 0:02:27.1]} 19. Bf1 {[%clk 0:02:47.8]}
19... Rac8 {[%clk 0:02:25.6]} 20. Qd2 {[%clk 0:02:46.2]} 20... Qb3 {[%clk
0:02:13.8]} 21. Rd3 {[%clk 0:02:41]} 21... Qa4 {[%clk 0:02:09.6]} 22. Rc3 {[%clk
0:02:28.3]} 22... Qxe4 {[%clk 0:02:07.8]} 23. Bc4 {[%clk 0:02:24.7]} 23... Qg6
{[%clk 0:01:56.2]} 24. Bd5 {[%clk 0:02:19.7]} 24... Bg5 {[%clk 0:01:46.3]} 25.
Qe2 {[%clk 0:02:17.1]} 25... Qh5 {[%clk 0:01:40.4]} 26. h4 {[%clk 0:02:10]}
26... Be7 {[%clk 0:01:38.2]} 27. Rdc1 {[%clk 0:02:04.4]} 27... Qg4 {[%clk
0:01:21.6]} 28. Bxf7+ {[%clk 0:01:58.9]} 28... Kh8 {[%clk 0:01:15.8]} 29. Rc4
{[%clk 0:01:50.6]} 29... Qf5 {[%clk 0:01:08.1]} 30. Bd5 {[%clk 0:01:50.2]} 30...
Rf8 {[%clk 0:01:03.7]} 31. Kg2 {[%clk 0:01:44.5]} 31... Rce8 {[%clk 0:00:58.1]}
32. Be4 {[%clk 0:01:34.2]} 32... Qf7 {[%clk 0:00:49.5]} 33. Bb1 {[%clk
0:01:27.1]} 33... d5 {[%clk 0:00:44.8]} 34. Rxc6 {[%clk 0:01:25.7]} 34... bxc6
{[%clk 0:00:41.5]} 35. Nxe5 {[%clk 0:01:25.1]} 35... Qf6 {[%clk 0:00:36.8]} 36.
Ng6+ {[%clk 0:01:25.1]} 36... Kg8 {[%clk 0:00:37]} 37. Nxf8 {[%clk 0:01:04.1]}
37... Rxf8 {[%clk 0:00:37.9]} 38. f4 {[%clk 0:00:57]} 38... g6 {[%clk
0:00:18.6]} 39. Qc2 {[%clk 0:00:56.3]} 39... Kg7 {[%clk 0:00:18.8]} 40. Qxc6
{[%clk 0:00:55.2]} 40... Qxb2+ {[%clk 0:00:18.7]} 41. Kh3 {[%clk 0:00:55.2]}
41... Rf6 {[%clk 0:00:14.8]} 42. Qc7 {[%clk 0:00:55.2]} 42... Rf7 {[%clk
0:00:14.5]} 43. Qc8 {[%clk 0:00:39.6]} 43... Qxa3 {[%clk 0:00:14.2]} 44. Rc6
{[%clk 0:00:35.7]} 44... Bf6 {[%clk 0:00:12.7]} 45. Qg4 {[%clk 0:00:30.5]} 45...
Kf8 {[%clk 0:00:08.6]} 46. Bxg6 {[%clk 0:00:29.2]} 46... Qa4 {[%clk 0:00:06.8]}
47. Rc8+ {[%clk 0:00:24.7]} 47... Kg7 {[%clk 0:00:06.3]} 48. Bf5+ {[%clk
0:00:23.3]} 1-0

[Event "Late-Titled-Tuesday-Blitz-March-19-2024"]
[Site "Chess.com"]
[Date "2024.03.19"]
[Round "4"]
[White "mishanick"]
[Black "aistrel"]
[Result "1-0"]
[WhiteElo "3116"]
[BlackElo "2643"]
[TimeControl "180+1"]
[EndTime "14:39:04 PDT"]
[Termination "mishanick won by resignation"]

1. d4 {[%clk 0:02:56.2]} 1... d5 {[%clk 0:03:00.4]} 2. c4 {[%clk 0:02:55]} 2...
dxc4 {[%clk 0:03:00.9]} 3. e3 {[%clk 0:02:53.9]} 3... Nf6 {[%clk 0:03:00.9]} 4.
Bxc4 {[%clk 0:02:54.4]} 4... e6 {[%clk 0:03:01.5]} 5. Nf3 {[%clk 0:02:53.6]}
5... c5 {[%clk 0:03:01.9]} 6. O-O {[%clk 0:02:54.1]} 6... a6 {[%clk 0:03:02.5]}
7. Qe2 {[%clk 0:02:52.8]} 7... b5 {[%clk 0:03:02.4]} 8. Bb3 {[%clk 0:02:53.2]}
8... Bb7 {[%clk 0:03:02.3]} 9. Rd1 {[%clk 0:02:50.8]} 9... Nbd7 {[%clk
0:03:02.3]} 10. Nc3 {[%clk 0:02:43.1]} 10... Qc7 {[%clk 0:03:02.4]} 11. e4
{[%clk 0:02:37.5]} 11... cxd4 {[%clk 0:03:02.6]} 12. Nxd4 {[%clk 0:02:37.2]}
12... Bc5 {[%clk 0:03:03.3]} 13. Be3 {[%clk 0:02:23.3]} 13... O-O {[%clk
0:03:02.3]} 14. f3 {[%clk 0:02:23.8]} 14... Rfd8 {[%clk 0:03:02]} 15. Rac1
{[%clk 0:02:23.5]} 15... Qb6 {[%clk 0:03:02.5]} 16. Nc2 {[%clk 0:02:23.4]} 16...
Rac8 {[%clk 0:02:59.7]} 17. Qf2 {[%clk 0:02:20.9]} 17... Bxe3 {[%clk 0:02:53.9]}
18. Nxe3 {[%clk 0:02:18.6]} 18... Nc5 {[%clk 0:02:45.5]} 19. Bc2 {[%clk
0:02:18.5]} 19... h6 {[%clk 0:02:44.4]} 20. Rxd8+ {[%clk 0:02:13.8]} 20... Rxd8
{[%clk 0:02:43.7]} 21. Rd1 {[%clk 0:02:13.8]} 21... b4 {[%clk 0:02:40.7]} 22.
Rxd8+ {[%clk 0:02:08.7]} 22... Qxd8 {[%clk 0:02:41.6]} 23. Na4 {[%clk
0:02:03.6]} 23... Qd4 {[%clk 0:02:21.9]} 24. Nxc5 {[%clk 0:02:02.3]} 24... Qxc5
{[%clk 0:02:22.8]} 25. Qd2 {[%clk 0:01:55.2]} 25... Nd7 {[%clk 0:02:07.4]} 26.
Kf2 {[%clk 0:01:53.6]} 26... Ne5 {[%clk 0:02:04.2]} 27. Kg3 {[%clk 0:01:22.7]}
27... g6 {[%clk 0:01:44.7]} 28. h4 {[%clk 0:01:11.9]} 28... Kg7 {[%clk 0:01:41]}
29. Bb3 {[%clk 0:01:07.3]} 29... Qc7 {[%clk 0:01:36.8]} 30. Qd4 {[%clk
0:00:50.2]} 30... Kh7 {[%clk 0:01:37]} 31. Kf2 {[%clk 0:00:49.6]} 31... Nc6
{[%clk 0:01:33]} 32. Qf6 {[%clk 0:00:47.2]} 32... Qe7 {[%clk 0:01:33.5]} 33.
Qxe7 {[%clk 0:00:46.3]} 33... Nxe7 {[%clk 0:01:34.4]} 34. Nc4 {[%clk 0:00:43.9]}
34... Kg7 {[%clk 0:01:27.3]} 35. Na5 {[%clk 0:00:41.9]} 35... Bc6 {[%clk
0:01:22.1]} 36. Bc4 {[%clk 0:00:41.2]} 36... Bb5 {[%clk 0:01:17]} 37. Ke3 {[%clk
0:00:38.4]} 37... Bxc4 {[%clk 0:01:12.7]} 38. Nxc4 {[%clk 0:00:38.2]} 38... Nc6
{[%clk 0:01:13.4]} 39. e5 {[%clk 0:00:33.5]} 39... g5 {[%clk 0:01:11.5]} 40. h5
{[%clk 0:00:33.3]} 40... f6 {[%clk 0:01:08.3]} 41. exf6+ {[%clk 0:00:33.3]}
41... Kxf6 {[%clk 0:01:09.2]} 42. Ke4 {[%clk 0:00:32.7]} 42... Ne7 {[%clk
0:00:58.5]} 43. Ne3 {[%clk 0:00:30.4]} 43... Nf5 {[%clk 0:00:52.6]} 44. Ng4+
{[%clk 0:00:13.4]} 44... Ke7 {[%clk 0:00:40.3]} 45. Ke5 {[%clk 0:00:12.6]} 45...
a5 {[%clk 0:00:40.6]} 46. b3 {[%clk 0:00:12.3]} 46... Ng7 {[%clk 0:00:34.3]} 47.
Nf6 {[%clk 0:00:10.3]} 47... Kf7 {[%clk 0:00:32.8]} 48. g4 {[%clk 0:00:09.5]}
48... Ke7 {[%clk 0:00:28.7]} 49. Ng8+ {[%clk 0:00:09.3]} 49... Kd7 {[%clk
0:00:27.5]} 50. Nxh6 {[%clk 0:00:09.3]} 50... Ne8 {[%clk 0:00:28.4]} 51. Nf7
{[%clk 0:00:09.4]} 51... Nd6 {[%clk 0:00:28.3]} 52. Nxg5 {[%clk 0:00:09.6]}
52... Nb5 {[%clk 0:00:27.2]} 53. h6 {[%clk 0:00:10.1]} 53... Ke7 {[%clk
0:00:27.8]} 54. h7 {[%clk 0:00:10.8]} 1-0